[Event "NJSK 2023 Jeugd C"]
[Site "Almelo, Netherlands"]
[Date "2023.05.02"]
[Round "4.14"]
[White "De Wit, Evan"]
[Black "Verwer, Oscar"]
[Result "0-1"]
[TimeControl "90min/40moves + 30min + 30sec/move"]
[WhiteElo "1563"]
[BlackElo "1549"]

1. e4 {[%clk 01:30:51]} {[%emt 00:00:08]} c5 {[%clk 01:30:54]} {[%emt
00:00:07]} 2. Nf3 {[%clk 01:31:16]} {[%emt 00:00:04]} d6 {[%clk 01:31:20]}
{[%emt 00:00:06]} 3. d4 {[%clk 01:31:41]} {[%emt 00:00:04]} cxd4 {[%clk
01:31:41]} {[%emt 00:00:09]} 4. Nxd4 {[%clk 01:32:05]} {[%emt 00:00:06]} Nf6
{[%clk 01:32:05]} {[%emt 00:00:06]} 5. Nc3 {[%clk 01:32:30]} {[%emt 00:00:05]}
a6 {[%clk 01:32:30]} {[%emt 00:00:06]} 6. Be2 {[%clk 01:32:55]} {[%emt
00:00:04]} e5 {[%clk 01:32:30]} {[%emt 00:00:30]} 7. Nb3 {[%clk 01:33:17]}
{[%emt 00:00:07]} Be7 {[%clk 01:32:25]} {[%emt 00:00:35]} 8. Be3 {[%clk
01:33:34]} {[%emt 00:00:14]} Be6 {[%clk 01:31:20]} {[%emt 00:01:35]} 9. Bf3
{[%clk 01:33:50]} {[%emt 00:00:13]} Nbd7 {[%clk 01:30:28]} {[%emt 00:01:22]} 10.
a4 {[%clk 01:34:07]} {[%emt 00:00:13]} Nc5 {[%clk 01:19:47]} {[%emt 00:11:11]}
11. Nxc5 {[%clk 01:33:37]} {[%emt 00:00:59]} dxc5 {[%clk 01:19:48]} {[%emt
00:00:29]} 12. Qe2 {[%clk 01:33:54]} {[%emt 00:00:12]} Qc7 {[%clk 01:18:32]}
{[%emt 00:01:47]} 13. O-O {[%clk 01:33:57]} {[%emt 00:00:27]} O-O {[%clk
01:18:51]} {[%emt 00:00:11]} 14. a5 {[%clk 01:33:19]} {[%emt 00:01:09]} Rad8
{[%clk 01:17:51]} {[%emt 00:01:30]} 15. Na4 {[%clk 01:32:56]} {[%emt 00:00:53]}
Qxa5 {[%clk 01:12:00]} {[%emt 00:06:20]} 16. Nxc5 {[%clk 01:33:05]} {[%emt
00:00:22]} Qc7 {[%clk 01:12:05]} {[%emt 00:00:25]} 17. Nxe6 {[%clk 01:33:17]}
{[%emt 00:00:17]} fxe6 {[%clk 01:12:26]} {[%emt 00:00:09]} 18. c3 {[%clk
01:32:01]} {[%emt 00:01:46]} Rd7 {[%clk 00:58:26]} {[%emt 00:14:31]} 19. Qc2
{[%clk 01:31:01]} {[%emt 00:01:29]} Rfd8 {[%clk 00:56:03]} {[%emt 00:02:53]} 20.
Qb3 {[%clk 01:30:25]} {[%emt 00:01:06]} Rd6 {[%clk 00:49:29]} {[%emt 00:07:05]}
21. Ra4 {[%clk 01:28:11]} {[%emt 00:02:43]} b5 {[%clk 00:48:26]} {[%emt
00:01:34]} 22. Ra2 {[%clk 01:28:32]} {[%emt 00:00:08]} h6 {[%clk 00:48:05]}
{[%emt 00:00:52]} 23. Rfa1 {[%clk 01:28:30]} {[%emt 00:00:32]} Qc6 {[%clk
00:45:23]} {[%emt 00:03:12]} 24. Qc2 {[%clk 01:28:00]} {[%emt 00:00:59]} g5
{[%clk 00:44:59]} {[%emt 00:00:55]} 25. Be2 {[%clk 01:25:31]} {[%emt 00:02:58]}
Ra8 {[%clk 00:37:48]} {[%emt 00:07:41]} 26. f3 {[%clk 01:23:02]} {[%emt
00:02:57]} Nh5 {[%clk 00:36:24]} {[%emt 00:01:56]} 27. g3 {[%clk 01:21:07]}
{[%emt 00:02:24]} Rdd8 {[%clk 00:34:37]} {[%emt 00:02:18]} 28. Kh1 {[%clk
01:18:48]} {[%emt 00:02:49]} Bc5 {[%clk 00:32:52]} {[%emt 00:02:15]} 29. Bxc5
{[%clk 01:17:20]} {[%emt 00:01:58]} Qxc5 {[%clk 00:33:06]} {[%emt 00:00:17]} 30.
Rxa6 {[%clk 01:16:52]} {[%emt 00:00:57]} Rxa6 {[%clk 00:30:27]} {[%emt
00:03:09]} 31. Rxa6 {[%clk 01:16:47]} {[%emt 00:00:35]} Qe3 {[%clk 00:26:03]}
{[%emt 00:04:55]} 32. Qb3 {[%clk 01:05:29]} {[%emt 00:11:47]} Ng7 {[%clk
00:12:19]} {[%emt 00:14:13]} 33. Rxe6 {[%clk 01:04:44]} {[%emt 00:01:16]} Kh7
{[%clk 00:08:21]} {[%emt 00:04:28]} 34. Kg2 {[%clk 00:47:03]} {[%emt 00:18:11]}
Qxe2+ {[%clk 00:07:28]} {[%emt 00:01:24]} 35. Kh3 {[%clk 00:47:07]} {[%emt
00:00:25]} Rd2 {[%clk 00:06:14]} {[%emt 00:01:45]} 36. Kg4 {[%clk 00:46:33]}
{[%emt 00:01:04]} Qxh2 {[%clk 00:05:10]} {[%emt 00:01:34]} 0-1

[Event "NJSK 2023 Jeugd C"]
[Site "Almelo, Netherlands"]
[Date "2023.05.02"]
[Round "4.15"]
[White "Zootjes, Aäron"]
[Black "Rooijakkers, Liam"]
[Result "1/2-1/2"]
[TimeControl "90min/40moves + 30min + 30sec/move"]
[WhiteElo "1172"]
[BlackElo "1322"]

1. e4 {[%clk 01:30:58]} {[%emt 00:00:02]} d6 {[%clk 01:30:49]} {[%emt
00:00:11]} 2. d4 {[%clk 01:31:19]} {[%emt 00:00:09]} Nf6 {[%clk 01:31:07]}
{[%emt 00:00:13]} 3. Nc3 {[%clk 01:31:34]} {[%emt 00:00:15]} Nbd7 {[%clk
01:31:18]} {[%emt 00:00:16]} 4. Bc4 {[%clk 01:31:50]} {[%emt 00:00:17]} e5
{[%clk 01:31:22]} {[%emt 00:00:26]} 5. Nf3 {[%clk 01:31:41]} {[%emt 00:00:39]}
h6 {[%clk 01:31:43]} {[%emt 00:00:09]} 6. h3 {[%clk 01:31:57]} {[%emt
00:00:13]} c6 {[%clk 01:31:20]} {[%emt 00:00:54]} 7. d5 {[%clk 01:29:39]}
{[%emt 00:02:48]} Qc7 {[%clk 01:31:08]} {[%emt 00:00:42]} 8. O-O {[%clk
01:29:14]} {[%emt 00:00:55]} Be7 {[%clk 01:31:01]} {[%emt 00:00:36]} 9. Be3
{[%clk 01:28:55]} {[%emt 00:00:50]} Nf8 {[%clk 01:29:49]} {[%emt 00:01:42]} 10.
a4 {[%clk 01:20:12]} {[%emt 00:09:13]} g5 {[%clk 01:28:44]} {[%emt 00:01:35]}
11. Nh2 {[%clk 01:17:55]} {[%emt 00:02:48]} Ng6 {[%clk 01:27:46]} {[%emt
00:01:27]} 12. Be2 {[%clk 01:16:09]} {[%emt 00:02:16]} Nf4 {[%clk 01:27:30]}
{[%emt 00:00:46]} 13. Bxf4 {[%clk 01:15:34]} {[%emt 00:01:04]} gxf4 {[%clk
01:27:58]} {[%emt 00:00:03]} 14. Ng4 {[%clk 01:14:59]} {[%emt 00:01:05]} Bd7
{[%clk 01:18:12]} {[%emt 00:10:15]} 15. b4 {[%clk 01:10:23]} {[%emt 00:05:06]}
Qc8 {[%clk 01:09:00]} {[%emt 00:09:42]} 16. Nxf6+ {[%clk 01:06:05]} {[%emt
00:04:49]} Bxf6 {[%clk 01:09:22]} {[%emt 00:00:07]} 17. Bg4 {[%clk 01:06:25]}
{[%emt 00:00:10]} Bxg4 18. Qxg4 {[%clk 01:06:28]} Qxg4 {[%clk 01:08:15]} {[%emt
00:00:06]} 19. hxg4 {[%clk 01:06:46]} {[%emt 00:00:11]} Rc8 {[%clk 01:04:36]}
{[%emt 00:04:10]} 20. b5 {[%clk 01:01:46]} {[%emt 00:05:30]} c5 {[%clk
01:04:15]} {[%emt 00:00:52]} 21. a5 {[%clk 01:01:20]} {[%emt 00:00:57]} Rg8
{[%clk 01:03:48]} {[%emt 00:00:55]} 22. f3 {[%clk 01:01:35]} {[%emt 00:00:15]}
Kd7 {[%clk 01:02:49]} {[%emt 00:01:29]} 23. Na4 {[%clk 01:00:49]} {[%emt
00:01:17]} Bd8 {[%clk 01:01:11]} {[%emt 00:02:07]} 24. b6 {[%clk 00:59:29]}
{[%emt 00:01:50]} a6 {[%clk 01:01:13]} {[%emt 00:00:28]} 25. c4 {[%clk
00:59:38]} {[%emt 00:00:20]} Rg5 {[%clk 01:01:09]} {[%emt 00:00:35]} 26. Kf2
{[%clk 00:59:01]} {[%emt 00:01:08]} Rg6 {[%clk 01:00:07]} {[%emt 00:01:32]} 27.
Rh1 {[%clk 00:59:01]} {[%emt 00:00:29]} Be7 {[%clk 00:59:12]} {[%emt 00:01:25]}
28. Nc3 {[%clk 00:58:26]} {[%emt 00:01:05]} Rh8 {[%clk 00:57:23]} {[%emt
00:02:20]} 29. Ne2 {[%clk 00:57:35]} {[%emt 00:01:20]} Rg5 {[%clk 00:57:19]}
{[%emt 00:00:34]} 30. g3 {[%clk 00:57:44]} {[%emt 00:00:21]} Bf6 {[%clk
00:55:05]} {[%emt 00:02:45]} 31. Rag1 {[%clk 00:57:31]} {[%emt 00:00:43]} Rh7
{[%clk 00:53:49]} {[%emt 00:01:46]} 32. Rh5 {[%clk 00:52:31]} {[%emt 00:05:29]}
Rxh5 {[%clk 00:53:20]} {[%emt 00:00:58]} 33. gxh5 {[%clk 00:52:52]} {[%emt
00:00:10]} fxg3+ {[%clk 00:49:17]} {[%emt 00:04:32]} 34. Nxg3 {[%clk 00:53:03]}
{[%emt 00:00:20]} Bh4 {[%clk 00:49:28]} {[%emt 00:00:17]} 35. Rh1 {[%clk
00:51:16]} {[%emt 00:02:19]} Bxg3+ {[%clk 00:49:31]} {[%emt 00:00:27]} 1/2-1/2

[Event "NJSK 2023 Jeugd C"]
[Site "Almelo, Netherlands"]
[Date "2023.05.03"]
[Round "5.1"]
[White "Madularea, David"]
[Black "Arnold, Rhys"]
[Result "1/2-1/2"]
[TimeControl "90min/40moves + 30min + 30sec/move"]
[WhiteElo "1895"]
[BlackElo "2003"]

1. e4 {[%clk 01:30:57]} {[%emt 00:00:01]} c5 {[%clk 01:30:58]} {[%emt
00:00:03]} 2. Nf3 {[%clk 01:31:19]} {[%emt 00:00:08]} Nc6 {[%clk 01:31:26]}
{[%emt 00:00:03]} 3. d4 {[%clk 01:31:41]} {[%emt 00:00:07]} cxd4 {[%clk
01:31:51]} {[%emt 00:00:05]} 4. Nxd4 {[%clk 01:32:05]} {[%emt 00:00:05]} Nf6
{[%clk 01:32:20]} {[%emt 00:00:02]} 5. Nc3 {[%clk 01:32:28]} {[%emt 00:00:06]}
e5 {[%clk 01:32:48]} {[%emt 00:00:02]} 6. Ndb5 {[%clk 01:32:51]} {[%emt
00:00:07]} d6 {[%clk 01:33:13]} {[%emt 00:00:06]} 7. Bg5 {[%clk 01:33:15]}
{[%emt 00:00:05]} a6 {[%clk 01:33:39]} {[%emt 00:00:05]} 8. Na3 {[%clk
01:33:40]} {[%emt 00:00:04]} b5 {[%clk 01:33:55]} {[%emt 00:00:15]} 9. Nd5
{[%clk 01:34:05]} {[%emt 00:00:04]} Be7 {[%clk 01:34:20]} {[%emt 00:00:05]} 10.
Bxf6 {[%clk 01:34:31]} {[%emt 00:00:05]} Bxf6 {[%clk 01:34:46]} {[%emt
00:00:04]} 11. c4 {[%clk 01:34:55]} {[%emt 00:00:06]} b4 {[%clk 01:35:02]}
{[%emt 00:00:15]} 12. Nc2 {[%clk 01:35:20]} {[%emt 00:00:05]} O-O {[%clk
01:35:24]} {[%emt 00:00:08]} 13. g3 {[%clk 01:35:43]} {[%emt 00:00:07]} a5
{[%clk 01:28:22]} {[%emt 00:07:33]} 14. Bg2 {[%clk 01:35:54]} {[%emt 00:00:18]}
Bg5 {[%clk 01:23:42]} {[%emt 00:05:11]} 15. O-O {[%clk 01:36:16]} {[%emt
00:00:08]} Bb7 {[%clk 01:12:43]} {[%emt 00:11:29]} 16. Qd3 {[%clk 01:29:32]}
{[%emt 00:07:13]} Ne7 {[%clk 01:10:36]} {[%emt 00:02:37]} 17. Nce3 {[%clk
01:21:37]} {[%emt 00:08:25]} Nxd5 {[%clk 01:06:00]} {[%emt 00:05:07]} 18. Nxd5
{[%clk 01:21:33]} {[%emt 00:00:34]} Rc8 {[%clk 01:04:47]} {[%emt 00:01:43]} 19.
a3 {[%clk 01:04:22]} {[%emt 00:17:41]} Bxd5 {[%clk 01:00:49]} {[%emt 00:04:27]}
20. Qxd5 {[%clk 01:03:28]} {[%emt 00:01:24]} Rc5 {[%clk 00:55:04]} {[%emt
00:06:15]} 21. Qd3 {[%clk 01:03:04]} {[%emt 00:00:54]} bxa3 {[%clk 00:54:04]}
{[%emt 00:01:30]} 1/2-1/2

[Event "NJSK 2023 Jeugd C"]
[Site "Almelo, Netherlands"]
[Date "2023.05.03"]
[Round "5.2"]
[White "Groenewoud, Joel"]
[Black "Zecha, Oscar"]
[Result "1-0"]
[TimeControl "90min/40moves + 30min + 30sec/move"]
[WhiteElo "1990"]
[BlackElo "1879"]

1. e4 {[%clk 01:30:58]} {[%emt 00:00:02]} e5 {[%clk 01:30:59]} 2. Nf3 {[%clk
01:31:20]} {[%emt 00:00:08]} Nc6 {[%clk 01:31:28]} {[%emt 00:00:02]} 3. Bc4
{[%clk 01:31:44]} {[%emt 00:00:06]} Bc5 {[%clk 01:31:57]} {[%emt 00:00:02]} 4.
b4 {[%clk 01:32:06]} {[%emt 00:00:07]} Bxb4 {[%clk 01:32:25]} {[%emt 00:00:02]}
5. c3 {[%clk 01:32:30]} {[%emt 00:00:06]} Be7 {[%clk 01:32:53]} {[%emt
00:00:02]} 6. d4 {[%clk 01:32:53]} {[%emt 00:00:06]} Na5 {[%clk 01:33:20]}
{[%emt 00:00:03]} 7. Be2 {[%clk 01:33:15]} {[%emt 00:00:09]} d6 {[%clk
01:33:33]} {[%emt 00:00:18]} 8. dxe5 {[%clk 01:33:22]} {[%emt 00:00:22]} dxe5
{[%clk 01:33:51]} {[%emt 00:00:12]} 9. Qa4+ {[%clk 01:33:35]} {[%emt 00:00:17]}
c6 {[%clk 01:33:49]} {[%emt 00:00:32]} 10. Nxe5 {[%clk 01:33:54]} {[%emt
00:00:11]} Nf6 {[%clk 01:34:10]} {[%emt 00:00:09]} 11. O-O {[%clk 01:33:50]}
{[%emt 00:00:34]} O-O {[%clk 01:34:31]} {[%emt 00:00:10]} 12. Rd1 {[%clk
01:33:59]} {[%emt 00:00:21]} Qc7 {[%clk 01:32:14]} {[%emt 00:02:47]} 13. Bf4
{[%clk 01:33:58]} {[%emt 00:00:31]} b5 {[%clk 01:31:19]} {[%emt 00:01:25]} 14.
Qc2 {[%clk 01:33:59]} {[%emt 00:00:29]} Qb6 {[%clk 01:24:40]} {[%emt 00:07:09]}
15. Nd2 {[%clk 01:30:09]} {[%emt 00:04:20]} Be6 {[%clk 01:21:22]} {[%emt
00:03:48]} 16. Ndf3 {[%clk 01:21:30]} {[%emt 00:09:09]} Ng4 {[%clk 01:07:04]}
{[%emt 00:14:48]} 17. Nxg4 {[%clk 01:02:19]} {[%emt 00:19:40]} Bxg4 {[%clk
01:07:27]} {[%emt 00:00:07]} 18. Nd4 {[%clk 01:01:27]} {[%emt 00:01:23]} Bxe2
{[%clk 01:04:27]} {[%emt 00:03:29]} 19. Qxe2 {[%clk 01:01:44]} {[%emt
00:00:12]} Rfe8 {[%clk 00:56:33]} {[%emt 00:08:24]} 20. Nf5 {[%clk 00:53:23]}
{[%emt 00:08:52]} Bf6 {[%clk 00:53:49]} {[%emt 00:03:14]} 21. Rd7 {[%clk
00:20:16]} {[%emt 00:33:37]} Qc5 {[%clk 00:41:51]} {[%emt 00:12:29]} 22. Qh5
{[%clk 00:09:39]} {[%emt 00:11:06]} Qxc3 {[%clk 00:38:01]} {[%emt 00:04:20]} 23.
Rad1 {[%clk 00:06:17]} {[%emt 00:03:52]} Rf8 {[%clk 00:27:13]} {[%emt
00:11:18]} 24. e5 {[%clk 00:05:45]} {[%emt 00:01:02]} Rad8 {[%clk 00:23:27]}
{[%emt 00:04:16]} 25. Rc1 {[%clk 00:00:48]} {[%emt 00:05:28]} Qb2 {[%clk
00:18:39]} {[%emt 00:05:18]} 26. Rxd8 {[%clk 00:00:34]} {[%emt 00:00:44]} Bxd8
{[%clk 00:18:53]} {[%emt 00:00:16]} 27. Qg4 {[%clk 00:00:33]} {[%emt 00:00:30]}
g6 {[%clk 00:19:04]} {[%emt 00:00:19]} 28. h4 {[%clk 00:00:35]} {[%emt
00:00:28]} h5 {[%clk 00:17:53]} {[%emt 00:01:41]} 29. Qg3 {[%clk 00:00:36]}
{[%emt 00:00:29]} Nc4 {[%clk 00:16:15]} {[%emt 00:02:08]} 30. Rd1 {[%clk
00:00:35]} {[%emt 00:00:30]} Kh7 {[%clk 00:09:47]} {[%emt 00:06:59]} 31. Nd4
{[%clk 00:00:33]} {[%emt 00:00:32]} c5 {[%clk 00:09:19]} {[%emt 00:00:58]} 32.
Nc6 {[%clk 00:00:49]} {[%emt 00:00:14]} Bb6 {[%clk 00:07:31]} {[%emt 00:02:19]}
33. Qg5 {[%clk 00:01:01]} {[%emt 00:00:17]} Re8 {[%clk 00:07:01]} {[%emt
00:01:00]} 34. Rd7 {[%clk 00:00:34]} {[%emt 00:00:57]} Qb1+ {[%emt 00:06:02]}
35. Kh2 {[%clk 00:00:57]} {[%emt 00:00:05]} Qf5 {[%clk 00:01:06]} {[%emt
00:00:56]} 36. Qh6+ {[%clk 00:01:01]} {[%emt 00:00:26]} Kg8 {[%clk 00:01:35]}
37. Ne7+ {[%clk 00:01:00]} {[%emt 00:00:31]} Rxe7 {[%clk 00:02:04]} 38. Rxe7
{[%clk 00:01:18]} {[%emt 00:00:11]} Qc8 {[%clk 00:02:13]} {[%emt 00:00:22]} 39.
e6 {[%clk 00:01:35]} {[%emt 00:00:13]} 1-0

[Event "NJSK 2023 Jeugd C"]
[Site "Almelo, Netherlands"]
[Date "2023.05.03"]
[Round "5.3"]
[White "Aravindhan, Achyuth"]
[Black "Kurt, Sascha"]
[Result "1/2-1/2"]
[TimeControl "90min/40moves + 30min + 30sec/move"]
[WhiteElo "1833"]
[BlackElo "1894"]

1. e4 {[%clk 01:30:59]} {[%emt 00:00:02]} c5 {[%clk 01:30:54]} {[%emt
00:00:06]} 2. Nf3 {[%clk 01:31:25]} {[%emt 00:00:05]} e6 {[%clk 01:31:16]}
{[%emt 00:00:07]} 3. d4 {[%clk 01:31:50]} {[%emt 00:00:05]} cxd4 {[%clk
01:31:42]} {[%emt 00:00:04]} 4. Nxd4 {[%clk 01:32:15]} {[%emt 00:00:05]} Nf6
{[%clk 01:32:05]} {[%emt 00:00:06]} 5. Nc3 {[%clk 01:32:31]} {[%emt 00:00:16]}
d6 {[%clk 01:32:30]} {[%emt 00:00:05]} 6. g4 {[%clk 01:32:35]} {[%emt
00:00:26]} h6 {[%clk 01:32:50]} {[%emt 00:00:10]} 7. h4 {[%clk 01:32:45]}
{[%emt 00:00:20]} Nc6 {[%clk 01:33:14]} {[%emt 00:00:07]} 8. Rg1 {[%clk
01:32:47]} {[%emt 00:00:28]} d5 {[%clk 01:33:34]} {[%emt 00:00:09]} 9. exd5
{[%clk 01:32:51]} {[%emt 00:00:26]} Nxd5 {[%clk 01:33:15]} {[%emt 00:00:50]} 10.
Nxd5 {[%clk 01:33:09]} {[%emt 00:00:11]} Qxd5 {[%clk 01:33:20]} {[%emt
00:00:25]} 11. Bg2 {[%clk 01:33:31]} {[%emt 00:00:08]} Qe5+ {[%clk 01:31:42]}
{[%emt 00:02:07]} 12. Be3 {[%clk 01:33:51]} {[%emt 00:00:11]} Bd7 {[%clk
01:27:30]} {[%emt 00:04:41]} 13. Nxc6 {[%clk 01:24:00]} {[%emt 00:10:21]} Bxc6
{[%clk 01:26:49]} {[%emt 00:01:11]} 14. Bxc6+ {[%clk 01:24:12]} {[%emt
00:00:19]} bxc6 {[%clk 01:27:18]} {[%emt 00:00:01]} 15. Qf3 {[%clk 01:24:06]}
{[%emt 00:00:34]} Qd5 {[%clk 01:18:01]} {[%emt 00:09:48]} 16. Qxd5 {[%clk
01:21:00]} {[%emt 00:03:37]} cxd5 {[%clk 01:18:08]} {[%emt 00:00:23]} 17. O-O-O
{[%clk 01:21:13]} {[%emt 00:00:16]} Be7 {[%clk 01:01:25]} {[%emt 00:17:13]} 18.
g5 {[%clk 01:09:59]} {[%emt 00:11:44]} hxg5 {[%clk 01:00:09]} {[%emt 00:01:47]}
19. hxg5 {[%clk 01:09:31]} {[%emt 00:00:57]} Bd6 {[%clk 00:40:45]} {[%emt
00:19:54]} 20. Kb1 {[%clk 01:03:27]} {[%emt 00:06:35]} Ke7 {[%clk 00:34:25]}
{[%emt 00:06:49]} 21. b3 {[%clk 00:40:55]} {[%emt 00:23:03]} a6 {[%clk
00:26:53]} {[%emt 00:08:02]} 22. Rge1 {[%clk 00:35:07]} {[%emt 00:06:17]} f6
{[%clk 00:22:47]} {[%emt 00:04:36]} 23. Bc1 {[%clk 00:30:47]} {[%emt 00:04:50]}
Bb4 {[%clk 00:21:16]} {[%emt 00:02:00]} 24. Rg1 {[%clk 00:29:45]} {[%emt
00:01:33]} Kf7 {[%clk 00:15:04]} {[%emt 00:06:43]} 25. gxf6 {[%clk 00:29:21]}
{[%emt 00:00:54]} gxf6 {[%clk 00:15:22]} {[%emt 00:00:12]} 26. c4 {[%clk
00:18:49]} {[%emt 00:11:02]} Rad8 {[%clk 00:13:11]} {[%emt 00:02:40]} 27. Rg4
{[%clk 00:15:35]} {[%emt 00:03:45]} Bc5 {[%clk 00:11:09]} {[%emt 00:02:33]} 28.
cxd5 {[%clk 00:10:03]} {[%emt 00:06:03]} exd5 {[%clk 00:10:34]} {[%emt
00:01:06]} 29. Bb2 {[%clk 00:10:08]} {[%emt 00:00:24]} Rd6 {[%clk 00:09:23]}
{[%emt 00:01:41]} 30. Bd4 {[%clk 00:09:39]} {[%emt 00:00:59]} Bxd4 {[%clk
00:09:02]} {[%emt 00:00:51]} 31. Rgxd4 {[%clk 00:10:04]} {[%emt 00:00:05]} Ke6
{[%clk 00:08:47]} {[%emt 00:00:45]} 32. Kb2 {[%clk 00:08:54]} {[%emt 00:01:39]}
Rh5 {[%clk 00:08:37]} {[%emt 00:00:39]} 33. b4 {[%clk 00:08:49]} {[%emt
00:00:36]} Re5 {[%clk 00:08:18]} {[%emt 00:00:47]} 34. Kc3 {[%clk 00:08:13]}
{[%emt 00:01:07]} Re2 {[%clk 00:07:55]} {[%emt 00:00:53]} 35. R1d2 {[%clk
00:08:24]} {[%emt 00:00:20]} Rxd2 {[%clk 00:08:15]} {[%emt 00:00:10]} 1/2-1/2